[Event "*** Titled Tuesday Blitz"]
[Site "Chess.com"]
[Date "2021.03.02"]
[Round "1"]
[White "Azde"]
[Black "KuzubovYuriy"]
[Result "0-1"]
[WhiteElo "2448"]
[BlackElo "2907"]
[TimeControl "180+1"]
[EndTime "10:05:55 PST"]
[Termination "KuzubovYuriy won by resignation"]

1. d4 {[%clk 0:03:00.9]} 1... Nf6 {[%clk 0:02:59.8]} 2. c4 {[%clk 0:02:59.5]}
2... e6 {[%clk 0:02:58.6]} 3. Nf3 {[%clk 0:02:56.4]} 3... d5 {[%clk 0:02:57.6]}
4. g3 {[%clk 0:02:55.3]} 4... Be7 {[%clk 0:02:53.6]} 5. Bg2 {[%clk 0:02:54.2]}
5... O-O {[%clk 0:02:54.2]} 6. O-O {[%clk 0:02:52.1]} 6... dxc4 {[%clk
0:02:54.6]} 7. Qc2 {[%clk 0:02:50.8]} 7... b5 {[%clk 0:02:52.7]} 8. a4 {[%clk
0:02:27.1]} 8... b4 {[%clk 0:02:51.3]} 9. Ne5 {[%clk 0:02:04.8]} 9... Nd5 {[%clk
0:02:50.6]} 10. Nxc4 {[%clk 0:02:03.6]} 10... c5 {[%clk 0:02:47.4]} 11. dxc5
{[%clk 0:01:58.7]} 11... Ba6 {[%clk 0:02:42.8]} 12. Rd1 {[%clk 0:01:54.1]} 12...
Nd7 {[%clk 0:02:28.3]} 13. c6 {[%clk 0:01:51.9]} 13... Rc8 {[%clk 0:02:25.6]}
14. cxd7 {[%clk 0:01:37.7]} 14... Rxc4 {[%clk 0:02:20.2]} 15. Qd2 {[%clk
0:01:30]} 15... Qc7 {[%clk 0:02:05.8]} 16. e4 {[%clk 0:01:14.4]} 16... Nb6
{[%clk 0:01:49.7]} 17. Qe1 {[%clk 0:01:10.4]} 17... Nxd7 {[%clk 0:01:42.6]} 18.
Bf4 {[%clk 0:00:47.1]} 18... e5 {[%clk 0:01:37.5]} 19. Be3 {[%clk 0:00:47.3]}
19... Nc5 {[%clk 0:01:31.8]} 20. f3 {[%clk 0:00:34.2]} 20... Rc2 {[%clk
0:01:23.8]} 21. Bf1 {[%clk 0:00:26.8]} 21... Bxf1 {[%clk 0:01:21.2]} 22. Qxf1
{[%clk 0:00:27.7]} 22... Nb3 {[%clk 0:01:20.6]} 23. Ra2 {[%clk 0:00:26]} 23...
Bc5 {[%clk 0:01:19.4]} 24. Qd3 {[%clk 0:00:18.1]} 24... Nc1 {[%clk 0:01:08.4]}
25. Rxc1 {[%clk 0:00:09.5]} 25... Rxc1+ {[%clk 0:01:04.8]} 26. Kg2 {[%clk
0:00:09]} 26... Bxe3 {[%clk 0:01:02.4]} 0-1

[Event "*** Titled Tuesday Blitz"]
[Site "Chess.com"]
[Date "2021.03.02"]
[Round "1"]
[White "nrvisakh"]
[Black "dopolian"]
[Result "1-0"]
[WhiteElo "2797"]
[BlackElo "2415"]
[TimeControl "180+1"]
[EndTime "10:05:56 PST"]
[Termination "nrvisakh won by resignation"]

1. d4 {[%clk 0:03:00.9]} 1... Nf6 {[%clk 0:02:59]} 2. Bf4 {[%clk 0:03:00.4]}
2... d5 {[%clk 0:02:57]} 3. e3 {[%clk 0:03:00.4]} 3... e6 {[%clk 0:02:56.8]} 4.
Nd2 {[%clk 0:02:59.7]} 4... Bd6 {[%clk 0:02:53.9]} 5. Bg3 {[%clk 0:02:55]} 5...
c5 {[%clk 0:02:52.2]} 6. Ngf3 {[%clk 0:02:53.7]} 6... Nc6 {[%clk 0:02:46.1]} 7.
Bb5 {[%clk 0:02:48.1]} 7... O-O {[%clk 0:02:42]} 8. Bxc6 {[%clk 0:02:33.5]} 8...
bxc6 {[%clk 0:02:41.2]} 9. Bxd6 {[%clk 0:02:33.2]} 9... Qxd6 {[%clk 0:02:41]}
10. dxc5 {[%clk 0:02:33.3]} 10... Qxc5 {[%clk 0:02:40.9]} 11. Nb3 {[%clk
0:02:33.4]} 11... Qd6 {[%clk 0:02:39.6]} 12. Qd4 {[%clk 0:02:32.4]} 12... Nd7
{[%clk 0:02:36]} 13. O-O {[%clk 0:02:31]} 13... c5 {[%clk 0:02:30.2]} 14. Qh4
{[%clk 0:02:30.5]} 14... Nf6 {[%clk 0:02:26.5]} 15. Rfd1 {[%clk 0:02:29.8]}
15... Bb7 {[%clk 0:02:19.7]} 16. e4 {[%clk 0:01:36.1]} 16... Nxe4 {[%clk
0:01:59.1]} 17. Qxe4 {[%clk 0:01:35.1]} 17... dxe4 {[%clk 0:02:00]} 18. Rxd6
{[%clk 0:01:35.3]} 18... exf3 {[%clk 0:02:00.7]} 19. Nxc5 {[%clk 0:01:36.1]}
19... Bd5 {[%clk 0:02:00.9]} 20. Nd3 {[%clk 0:01:32.6]} 20... Rfc8 {[%clk
0:01:51]} 21. Nb4 {[%clk 0:01:17.7]} 21... Be4 {[%clk 0:01:35.1]} 22. Re1 {[%clk
0:01:04.3]} 22... Bxc2 {[%clk 0:01:30.5]} 23. gxf3 {[%clk 0:01:04.4]} 23... a5
{[%clk 0:01:26]} 24. Nc6 {[%clk 0:01:02.2]} 24... Rc7 {[%clk 0:01:18.7]} 25. Re5
{[%clk 0:00:56.6]} 25... a4 {[%clk 0:01:16.9]} 26. Ra5 {[%clk 0:00:54.4]} 26...
Rac8 {[%clk 0:01:09.8]} 27. Rc5 {[%clk 0:00:53.6]} 27... Bb1 {[%clk 0:00:34.9]}
28. Ne7+ {[%clk 0:00:53]} 1-0

[Event "*** Titled Tuesday Blitz"]
[Site "Chess.com"]
[Date "2021.03.02"]
[Round "1"]
[White "ObligatePawnivore"]
[Black "szachuspl"]
[Result "0-1"]
[WhiteElo "1838"]
[BlackElo "2481"]
[TimeControl "180+1"]
[EndTime "10:05:57 PST"]
[Termination "szachuspl won on time"]

1. c4 {[%clk 0:02:54.1]} 1... e5 {[%clk 0:02:58.2]} 2. Nc3 {[%clk 0:02:53.8]}
2... Nf6 {[%clk 0:02:57.8]} 3. Nf3 {[%clk 0:02:54.2]} 3... Nc6 {[%clk
0:02:56.9]} 4. e3 {[%clk 0:02:54.5]} 4... Bb4 {[%clk 0:02:49.3]} 5. Qc2 {[%clk
0:02:54.1]} 5... Bxc3 {[%clk 0:02:48.8]} 6. bxc3 {[%clk 0:02:55]} 6... e4 {[%clk
0:02:47.5]} 7. Ng5 {[%clk 0:02:54.5]} 7... Qe7 {[%clk 0:02:46.5]} 8. f3 {[%clk
0:02:54.4]} 8... exf3 {[%clk 0:02:43.6]} 9. Nxf3 {[%clk 0:02:55.3]} 9... O-O
{[%clk 0:02:43.1]} 10. Be2 {[%clk 0:02:54.2]} 10... d5 {[%clk 0:02:41.9]} 11.
cxd5 {[%clk 0:02:51.4]} 11... Nxd5 {[%clk 0:02:42.8]} 12. O-O {[%clk 0:02:43]}
12... Bg4 {[%clk 0:02:34.9]} 13. e4 {[%clk 0:02:26]} 13... Nf4 {[%clk
0:02:30.5]} 14. d4 {[%clk 0:02:10.1]} 14... Nxe2+ {[%clk 0:02:23.2]} 15. Qxe2
{[%clk 0:02:11]} 15... Rfe8 {[%clk 0:02:21.9]} 16. e5 {[%clk 0:01:29.3]} 16...
h6 {[%clk 0:02:18.1]} 17. Qb5 {[%clk 0:01:13.6]} 17... Qd7 {[%clk 0:02:10.7]}
18. Rb1 {[%clk 0:00:48.3]} 18... b6 {[%clk 0:02:07.9]} 19. Bf4 {[%clk 0:00:32]}
19... Na5 {[%clk 0:02:04.6]} 20. Qxd7 {[%clk 0:00:27.9]} 20... Bxd7 {[%clk
0:02:05.5]} 21. e6 {[%clk 0:00:27.8]} 21... Bxe6 {[%clk 0:02:03.9]} 22. Bxc7
{[%clk 0:00:27.7]} 22... Rac8 {[%clk 0:02:01]} 23. Bg3 {[%clk 0:00:24.2]} 23...
Rxc3 {[%clk 0:02:00.5]} 24. Rfe1 {[%clk 0:00:20.9]} 24... Rd8 {[%clk 0:01:59.6]}
25. Ne5 {[%clk 0:00:19.7]} 25... Rxd4 {[%clk 0:01:56.1]} 26. Nxf7 {[%clk
0:00:10.5]} 26... Bxf7 {[%clk 0:01:52.4]} 27. Be5 {[%clk 0:00:10.9]} 27... Rdc4
{[%clk 0:01:48.9]} 28. Bxc3 {[%clk 0:00:10.7]} 28... Rxc3 {[%clk 0:01:49.8]} 29.
Re7 {[%clk 0:00:10.9]} 29... Nc6 {[%clk 0:01:48.3]} 30. Rc7 {[%clk 0:00:09.6]}
30... Rc4 {[%clk 0:01:45.6]} 31. Rd1 {[%clk 0:00:08.5]} 31... a5 {[%clk
0:01:38.7]} 32. Rdd7 {[%clk 0:00:07.8]} 32... Ne5 {[%clk 0:01:37.6]} 33. Rd8+
{[%clk 0:00:07.4]} 33... Kh7 {[%clk 0:01:37.2]} 34. Re7 {[%clk 0:00:07.1]} 34...
Nc6 {[%clk 0:01:33.8]} 0-1

[Event "*** Titled Tuesday Blitz"]
[Site "Chess.com"]
[Date "2021.03.02"]
[Round "1"]
[White "ama18"]
[Black "mishanick"]
[Result "0-1"]
[WhiteElo "2471"]
[BlackElo "3013"]
[TimeControl "180+1"]
[EndTime "10:06:03 PST"]
[Termination "mishanick won by checkmate"]

1. e4 {[%clk 0:02:37.6]} 1... c5 {[%clk 0:02:59.8]} 2. Nf3 {[%clk 0:02:37.1]}
2... d6 {[%clk 0:03:00.4]} 3. d4 {[%clk 0:02:37.6]} 3... cxd4 {[%clk 0:03:00.4]}
4. Nxd4 {[%clk 0:02:38.5]} 4... Nf6 {[%clk 0:03:01.1]} 5. Nc3 {[%clk 0:02:38.6]}
5... a6 {[%clk 0:03:01.6]} 6. h3 {[%clk 0:02:37.8]} 6... e6 {[%clk 0:03:00.1]}
7. g4 {[%clk 0:02:37.1]} 7... Nfd7 {[%clk 0:03:00.2]} 8. g5 {[%clk 0:02:36.7]}
8... Be7 {[%clk 0:02:57.5]} 9. h4 {[%clk 0:02:36.9]} 9... Qc7 {[%clk 0:02:56.8]}
10. Be3 {[%clk 0:02:36.6]} 10... Nc6 {[%clk 0:02:55.9]} 11. Nxc6 {[%clk
0:02:36.5]} 11... Qxc6 {[%clk 0:02:56]} 12. Qd4 {[%clk 0:02:35]} 12... Ne5
{[%clk 0:02:53.5]} 13. Be2 {[%clk 0:02:31]} 13... f6 {[%clk 0:02:07.3]} 14.
O-O-O {[%clk 0:02:13.5]} 14... Bd7 {[%clk 0:02:04.2]} 15. f4 {[%clk 0:02:12.3]}
15... Nf7 {[%clk 0:02:03.4]} 16. f5 {[%clk 0:01:35.2]} 16... Rc8 {[%clk
0:01:52.4]} 17. fxe6 {[%clk 0:01:27.5]} 17... Bxe6 {[%clk 0:01:53.3]} 18. Rd2
{[%clk 0:01:13.8]} 18... Ne5 {[%clk 0:01:48.5]} 19. Nd5 {[%clk 0:01:10.7]} 19...
Bxd5 {[%clk 0:01:48.1]} 20. exd5 {[%clk 0:01:11.6]} 20... Qd7 {[%clk 0:01:46.6]}
21. gxf6 {[%clk 0:01:01]} 21... Bxf6 {[%clk 0:01:47.5]} 22. Qb4 {[%clk
0:00:58.6]} 22... O-O {[%clk 0:01:42.5]} 23. Kb1 {[%clk 0:00:58.6]} 23... b5
{[%clk 0:01:40.3]} 24. Bg5 {[%clk 0:00:27.7]} 24... Nc4 {[%clk 0:01:32.9]} 25.
Bxc4 {[%clk 0:00:26.6]} 25... Rxc4 {[%clk 0:01:33.8]} 26. Qb3 {[%clk 0:00:23.2]}
26... Be5 {[%clk 0:01:33.2]} 27. Qd3 {[%clk 0:00:19.3]} 27... Qg4 {[%clk
0:01:29.7]} 28. Rdd1 {[%clk 0:00:16.7]} 28... Rf3 {[%clk 0:01:26.2]} 29. Qe2
{[%clk 0:00:14.5]} 29... Rb3 {[%clk 0:01:08.6]} 30. Qxg4 {[%clk 0:00:12.6]}
30... Rxb2+ {[%clk 0:01:08.2]} 31. Kc1 {[%clk 0:00:12.6]} 31... Rcxc2# {[%clk
0:01:07.8]} 0-1

[Event "*** Titled Tuesday Blitz"]
[Site "Chess.com"]
[Date "2021.03.02"]
[Round "1"]
[White "DLR7"]
[Black "UmarovSabir"]
[Result "1-0"]
[WhiteElo "2622"]
[BlackElo "2316"]
[TimeControl "180+1"]
[EndTime "10:06:04 PST"]
[Termination "DLR7 won by checkmate"]

1. e4 {[%clk 0:03:00.1]} 1... g6 {[%clk 0:02:56.8]} 2. d4 {[%clk 0:02:59.1]}
2... Bg7 {[%clk 0:02:51.8]} 3. Nc3 {[%clk 0:02:57.5]} 3... c6 {[%clk 0:02:49.8]}
4. f4 {[%clk 0:02:54.4]} 4... d5 {[%clk 0:02:48.7]} 5. e5 {[%clk 0:02:52.9]}
5... Nh6 {[%clk 0:02:42.8]} 6. Be2 {[%clk 0:02:50.7]} 6... f6 {[%clk 0:02:36.7]}
7. Be3 {[%clk 0:02:48.9]} 7... Nf5 {[%clk 0:02:32.9]} 8. Bf2 {[%clk 0:02:45.3]}
8... fxe5 {[%clk 0:02:15.5]} 9. dxe5 {[%clk 0:02:40]} 9... d4 {[%clk 0:01:54]}
10. Ne4 {[%clk 0:02:38.2]} 10... Ne3 {[%clk 0:00:57.2]} 11. Bxe3 {[%clk
0:02:36]} 11... dxe3 {[%clk 0:00:57.8]} 12. Qxd8+ {[%clk 0:02:33.9]} 12... Kxd8
{[%clk 0:00:58.7]} 13. Nf3 {[%clk 0:02:22.4]} 13... Bf5 {[%clk 0:00:54]} 14.
Neg5 {[%clk 0:02:15.7]} 14... Kc7 {[%clk 0:00:47.7]} 15. Nd4 {[%clk 0:02:12.4]}
15... Bh6 {[%clk 0:00:32.9]} 16. Nxf5 {[%clk 0:02:04.5]} 16... Bxg5 {[%clk
0:00:29.5]} 17. Nd4 {[%clk 0:02:04.7]} 17... Bh6 {[%clk 0:00:27.3]} 18. O-O-O
{[%clk 0:01:53.1]} 18... Kb6 {[%clk 0:00:20.1]} 19. Ne6 {[%clk 0:01:48.8]} 19...
Na6 {[%clk 0:00:18.9]} 20. Bxa6 {[%clk 0:01:46.4]} 20... bxa6 {[%clk 0:00:17.8]}
21. Rhe1 {[%clk 0:01:46.6]} 21... Rhg8 {[%clk 0:00:14.3]} 22. Rxe3 {[%clk
0:01:42.9]} 22... g5 {[%clk 0:00:13.8]} 23. Rb3+ {[%clk 0:01:40.5]} 23... Ka5
{[%clk 0:00:13.8]} 24. Nd4 {[%clk 0:01:32]} 24... Rac8 {[%clk 0:00:10.2]} 25.
Rb7 {[%clk 0:01:22.6]} 25... c5 {[%clk 0:00:03.6]} 26. Nb3+ {[%clk 0:01:15.4]}
26... Ka4 {[%clk 0:00:03.3]} 27. c3 {[%clk 0:01:13]} 27... gxf4 {[%clk
0:00:03.2]} 28. Rd4+ {[%clk 0:01:12.6]} 28... cxd4 {[%clk 0:00:02]} 29. Rb4#
{[%clk 0:01:13.2]} 1-0

[Event "*** Titled Tuesday Blitz"]
[Site "Chess.com"]
[Date "2021.03.02"]
[Round "1"]
[White "Gogolev_Artemy"]
[Black "mamonika"]
[Result "1-0"]
[WhiteElo "2485"]
[BlackElo "2015"]
[TimeControl "180+1"]
[EndTime "10:06:04 PST"]
[Termination "Gogolev_Artemy won on time"]

1. Nf3 {[%clk 0:02:37.8]} 1... Nf6 {[%clk 0:02:56.6]} 2. c4 {[%clk 0:02:37.6]}
2... c5 {[%clk 0:02:51.4]} 3. Nc3 {[%clk 0:02:31.6]} 3... Nc6 {[%clk 0:02:45.2]}
4. e3 {[%clk 0:02:31.5]} 4... d5 {[%clk 0:02:30.5]} 5. d4 {[%clk 0:02:28.2]}
5... cxd4 {[%clk 0:02:22.1]} 6. Nxd4 {[%clk 0:02:25.7]} 6... e6 {[%clk 0:01:43]}
7. cxd5 {[%clk 0:02:21.4]} 7... Nxd5 {[%clk 0:01:41.8]} 8. Nxc6 {[%clk
0:02:13.5]} 8... bxc6 {[%clk 0:01:41.9]} 9. Bd2 {[%clk 0:02:13.4]} 9... Be7
{[%clk 0:01:27.1]} 10. Be2 {[%clk 0:02:10.1]} 10... O-O {[%clk 0:01:26.6]} 11.
O-O {[%clk 0:02:10.3]} 11... Nxc3 {[%clk 0:01:26.8]} 12. Bxc3 {[%clk 0:02:11.2]}
12... Bf6 {[%clk 0:01:26.7]} 13. Rc1 {[%clk 0:02:10.2]} 13... Bxc3 {[%clk
0:00:59.4]} 14. Rxc3 {[%clk 0:02:11.1]} 14... Qb6 {[%clk 0:00:32.8]} 15. Qc2
{[%clk 0:01:59.7]} 15... Rb8 {[%clk 0:00:20.4]} 16. b3 {[%clk 0:01:48.4]} 16...
Bb7 {[%clk 0:00:17]} 17. Bf3 {[%clk 0:01:47.4]} 17... Rbc8 {[%clk 0:00:12.5]}
18. Rc1 {[%clk 0:01:40.8]} 18... c5 {[%clk 0:00:08]} 19. Bxb7 {[%clk 0:01:37.6]}
19... Qxb7 {[%clk 0:00:08.9]} 20. Rxc5 {[%clk 0:01:28.6]} 20... Rxc5 {[%clk
0:00:08.5]} 21. Qxc5 {[%clk 0:01:29.5]} 21... Rd8 {[%clk 0:00:08.8]} 22. h3
{[%clk 0:01:26.9]} 22... g6 {[%clk 0:00:08.8]} 23. Qc7 {[%clk 0:01:26.7]} 23...
Qxc7 {[%clk 0:00:06.6]} 24. Rxc7 {[%clk 0:01:23.4]} 24... Rd1+ {[%clk
0:00:04.8]} 25. Kh2 {[%clk 0:01:22.4]} 25... a5 {[%clk 0:00:04.4]} 26. Ra7
{[%clk 0:01:20.5]} 26... Rd2 {[%clk 0:00:02.9]} 27. Rxa5 {[%clk 0:01:19.9]}
27... Rxf2 {[%clk 0:00:03.8]} 28. b4 {[%clk 0:01:19.8]} 28... Re2 {[%clk
0:00:03.3]} 29. b5 {[%clk 0:01:17.4]} 29... Rxe3 {[%clk 0:00:03.6]} 30. b6
{[%clk 0:01:13.3]} 1-0

[Event "*** Titled Tuesday Blitz"]
[Site "Chess.com"]
[Date "2021.03.02"]
[Round "1"]
[White "Kaslask"]
[Black "sara_khm"]
[Result "0-1"]
[WhiteElo "2287"]
[BlackElo "2598"]
[TimeControl "180+1"]
[EndTime "10:06:09 PST"]
[Termination "sara_khm won by resignation"]

1. d4 {[%clk 0:03:00.9]} 1... Nf6 {[%clk 0:02:59.1]} 2. c4 {[%clk 0:02:59.2]}
2... e6 {[%clk 0:02:59.4]} 3. Nc3 {[%clk 0:02:59]} 3... Bb4 {[%clk 0:02:58.4]}
4. Nf3 {[%clk 0:02:58.8]} 4... b6 {[%clk 0:02:49.6]} 5. Bg5 {[%clk 0:02:57.1]}
5... Bb7 {[%clk 0:02:48.7]} 6. e3 {[%clk 0:02:56.1]} 6... h6 {[%clk 0:02:48.9]}
7. Bh4 {[%clk 0:02:55.5]} 7... g5 {[%clk 0:02:48.6]} 8. Bg3 {[%clk 0:02:55.2]}
8... Ne4 {[%clk 0:02:48.6]} 9. Qc2 {[%clk 0:02:44]} 9... Bxc3+ {[%clk
0:02:47.6]} 10. bxc3 {[%clk 0:02:43.1]} 10... d6 {[%clk 0:02:47.8]} 11. Bd3
{[%clk 0:02:42.1]} 11... Nxg3 {[%clk 0:02:19.9]} 12. hxg3 {[%clk 0:02:40.1]}
12... Nd7 {[%clk 0:02:20]} 13. a4 {[%clk 0:02:29.7]} 13... f5 {[%clk 0:02:07.5]}
14. d5 {[%clk 0:02:25.1]} 14... Nc5 {[%clk 0:02:03.9]} 15. dxe6 {[%clk
0:02:15.6]} 15... g4 {[%clk 0:01:53.4]} 16. Nd4 {[%clk 0:02:05.5]} 16... Bxg2
{[%clk 0:01:52.8]} 17. Bxf5 {[%clk 0:01:53.5]} 17... Bxh1 {[%clk 0:01:48.3]} 18.
Bg6+ {[%clk 0:01:53.3]} 18... Ke7 {[%clk 0:01:48.4]} 19. f3 {[%clk 0:01:39.9]}
19... Bxf3 {[%clk 0:01:47.4]} 20. e4 {[%clk 0:01:33.3]} 20... Qg8 {[%clk
0:01:35.7]} 21. Nc6+ {[%clk 0:01:07]} 21... Kxe6 {[%clk 0:01:24.7]} 22. e5
{[%clk 0:01:00.8]} 22... Rf8 {[%clk 0:01:07.6]} 23. Bf5+ {[%clk 0:00:56]} 23...
Kf7 {[%clk 0:00:46.2]} 24. Nd4 {[%clk 0:00:44.3]} 24... dxe5 {[%clk 0:00:43.9]}
25. Nxf3 {[%clk 0:00:39]} 25... gxf3 {[%clk 0:00:43.4]} 26. O-O-O {[%clk
0:00:38.9]} 26... Qg5+ {[%clk 0:00:43.5]} 27. Kb2 {[%clk 0:00:37.1]} 27... Rd8
{[%clk 0:00:43.8]} 28. g4 {[%clk 0:00:27]} 28... Rxd1 {[%clk 0:00:42.3]} 0-1

[Event "*** Titled Tuesday Blitz"]
[Site "Chess.com"]
[Date "2021.03.02"]
[Round "1"]
[White "Mbneu"]
[Black "CheckThis4"]
[Result "0-1"]
[WhiteElo "2314"]
[BlackElo "2617"]
[TimeControl "180+1"]
[EndTime "10:06:10 PST"]
[Termination "CheckThis4 won by checkmate"]

1. d4 {[%clk 0:02:58.7]} 1... d5 {[%clk 0:02:58.4]} 2. c4 {[%clk 0:02:59]} 2...
e6 {[%clk 0:02:58.7]} 3. Nc3 {[%clk 0:02:59.3]} 3... Bb4 {[%clk 0:02:58.8]} 4.
Nf3 {[%clk 0:02:58.4]} 4... Nf6 {[%clk 0:02:57.8]} 5. Bg5 {[%clk 0:02:57.2]}
5... dxc4 {[%clk 0:02:57.5]} 6. e4 {[%clk 0:02:55.2]} 6... c5 {[%clk 0:02:56.4]}
7. Bxc4 {[%clk 0:02:49.5]} 7... cxd4 {[%clk 0:02:50.8]} 8. Bxf6 {[%clk
0:02:48.7]} 8... Qxf6 {[%clk 0:02:39.4]} 9. Qxd4 {[%clk 0:02:17.8]} 9... Qxd4
{[%clk 0:02:34.6]} 10. Nxd4 {[%clk 0:02:18.7]} 10... Bxc3+ {[%clk 0:02:27.9]}
11. bxc3 {[%clk 0:02:19.6]} 11... a6 {[%clk 0:02:15.5]} 12. a4 {[%clk 0:02:17]}
12... Bd7 {[%clk 0:02:09]} 13. Rb1 {[%clk 0:02:10.4]} 13... Ra7 {[%clk
0:02:07.8]} 14. a5 {[%clk 0:00:48.4]} 14... Ke7 {[%clk 0:02:00.2]} 15. Ke2
{[%clk 0:00:39]} 15... Rc8 {[%clk 0:01:57.1]} 16. Kd3 {[%clk 0:00:38]} 16... Nc6
{[%clk 0:01:52.8]} 17. Nxc6+ {[%clk 0:00:35.3]} 17... Bxc6 {[%clk 0:01:47.7]}
18. f3 {[%clk 0:00:33.4]} 18... Raa8 {[%clk 0:01:43.3]} 19. Rb6 {[%clk
0:00:29.2]} 19... Rc7 {[%clk 0:01:40.3]} 20. Bb3 {[%clk 0:00:21.9]} 20... Rac8
{[%clk 0:01:34.3]} 21. c4 {[%clk 0:00:20.1]} 21... Rd8+ {[%clk 0:01:26.9]} 22.
Ke3 {[%clk 0:00:19.9]} 22... Rcd7 {[%clk 0:01:26.7]} 23. Bc2 {[%clk 0:00:14.9]}
23... Rd2 {[%clk 0:01:23.9]} 24. Rc1 {[%clk 0:00:13]} 24... Rxg2 {[%clk
0:01:20.6]} 25. e5 {[%clk 0:00:12.9]} 25... Rxh2 {[%clk 0:01:02.6]} 26. Be4
{[%clk 0:00:11.9]} 26... Bxe4 {[%clk 0:01:02.2]} 27. Kxe4 {[%clk 0:00:11]} 27...
Rd7 {[%clk 0:01:02.8]} 28. c5 {[%clk 0:00:10.7]} 28... g5 {[%clk 0:00:54.9]} 29.
c6 {[%clk 0:00:09.8]} 29... Re2# {[%clk 0:00:52.6]} 0-1

[Event "*** Titled Tuesday Blitz"]
[Site "Chess.com"]
[Date "2021.03.02"]
[Round "1"]
[White "Hongjin"]
[Black "jefferyx"]
[Result "0-1"]
[WhiteElo "2471"]
[BlackElo "3023"]
[TimeControl "180+1"]
[EndTime "10:06:11 PST"]
[Termination "jefferyx won on time"]

1. d4 {[%clk 0:02:59.1]} 1... Nf6 {[%clk 0:02:57.8]} 2. Nf3 {[%clk 0:02:59.1]}
2... d5 {[%clk 0:02:54.4]} 3. c4 {[%clk 0:02:57.8]} 3... dxc4 {[%clk 0:02:55.3]}
4. e3 {[%clk 0:02:57.2]} 4... e6 {[%clk 0:02:55.8]} 5. Bxc4 {[%clk 0:02:56.9]}
5... c5 {[%clk 0:02:56.5]} 6. O-O {[%clk 0:02:53.8]} 6... Nc6 {[%clk 0:02:57]}
7. Nc3 {[%clk 0:02:53.9]} 7... a6 {[%clk 0:02:55]} 8. d5 {[%clk 0:02:35.4]} 8...
Na5 {[%clk 0:02:47.6]} 9. Qe2 {[%clk 0:01:14.4]} 9... Nxc4 {[%clk 0:02:45.1]}
10. Qxc4 {[%clk 0:01:08.4]} 10... exd5 {[%clk 0:02:44.8]} 11. Qb3 {[%clk
0:01:04.3]} 11... b5 {[%clk 0:02:38.2]} 12. e4 {[%clk 0:00:56.3]} 12... d4
{[%clk 0:02:31.9]} 13. e5 {[%clk 0:00:54.1]} 13... Be6 {[%clk 0:02:31.3]} 14.
Qc2 {[%clk 0:00:53.7]} 14... dxc3 {[%clk 0:01:51.4]} 15. exf6 {[%clk 0:00:47.2]}
15... Qxf6 {[%clk 0:01:38.9]} 16. Qe4 {[%clk 0:00:37.3]} 16... Rc8 {[%clk
0:01:38.6]} 17. bxc3 {[%clk 0:00:34.4]} 17... Bd6 {[%clk 0:01:38.6]} 18. Ng5
{[%clk 0:00:27.5]} 18... Qe5 {[%clk 0:01:34.1]} 19. Qh4 {[%clk 0:00:14.4]} 19...
Be7 {[%clk 0:01:30]} 20. Nf3 {[%clk 0:00:10.5]} 20... Qxc3 {[%clk 0:01:28.6]}
21. Qg3 {[%clk 0:00:07.8]} 21... Qxa1 {[%clk 0:01:27]} 22. Bg5 {[%clk
0:00:07.9]} 22... Qc3 {[%clk 0:01:20.1]} 23. Bxe7 {[%clk 0:00:07.6]} 23... Kxe7
{[%clk 0:01:21]} 24. Qh4+ {[%clk 0:00:06.3]} 24... Qf6 {[%clk 0:01:21]} 25. Qe4
{[%clk 0:00:06.5]} 25... Rhd8 {[%clk 0:01:20.8]} 26. Re1 {[%clk 0:00:06.5]}
26... Kf8 {[%clk 0:01:20.8]} 27. Qxh7 {[%clk 0:00:06.4]} 27... Qh6 {[%clk
0:01:15.8]} 28. Qe4 {[%clk 0:00:06.4]} 28... Re8 {[%clk 0:01:13.7]} 29. Qb7
{[%clk 0:00:04.5]} 29... Bxa2 {[%clk 0:01:06.8]} 30. Rf1 {[%clk 0:00:03.3]}
30... Qc6 {[%clk 0:01:06.1]} 31. Qa7 {[%clk 0:00:03]} 31... Rc7 {[%clk 0:01:05]}
0-1

[Event "*** Titled Tuesday Blitz"]
[Site "Chess.com"]
[Date "2021.03.02"]
[Round "1"]
[White "Moultino06"]
[Black "anon219"]
[Result "0-1"]
[WhiteElo "2429"]
[BlackElo "2843"]
[TimeControl "180+1"]
[EndTime "10:06:12 PST"]
[Termination "anon219 won by resignation"]

1. e4 {[%clk 0:03:00.9]} 1... c5 {[%clk 0:02:59.3]} 2. c3 {[%clk 0:03:00.7]}
2... d5 {[%clk 0:02:56.3]} 3. exd5 {[%clk 0:03:00.8]} 3... Qxd5 {[%clk
0:02:57.2]} 4. d4 {[%clk 0:03:01.7]} 4... Nc6 {[%clk 0:02:56.8]} 5. Nf3 {[%clk
0:02:59.8]} 5... Bf5 {[%clk 0:02:55.5]} 6. Nbd2 {[%clk 0:02:55.4]} 6... Qe6+
{[%clk 0:02:27.2]} 7. Qe2 {[%clk 0:02:38.9]} 7... cxd4 {[%clk 0:02:24.8]} 8.
cxd4 {[%clk 0:02:31.9]} 8... Nf6 {[%clk 0:02:21.1]} 9. Qxe6 {[%clk 0:02:25.3]}
9... Bxe6 {[%clk 0:02:22]} 10. Bb5 {[%clk 0:02:26]} 10... Bd5 {[%clk 0:02:12.1]}
11. O-O {[%clk 0:02:22.2]} 11... a6 {[%clk 0:02:12]} 12. Bc4 {[%clk 0:02:19.9]}
12... e6 {[%clk 0:02:09.8]} 13. Bxd5 {[%clk 0:02:05.2]} 13... Nxd5 {[%clk
0:02:06.6]} 14. Ne4 {[%clk 0:02:01.1]} 14... Be7 {[%clk 0:02:01.6]} 15. Be3
{[%clk 0:01:53.4]} 15... O-O {[%clk 0:01:57.7]} 16. Ne5 {[%clk 0:01:51.8]} 16...
Rac8 {[%clk 0:01:53.5]} 17. Rac1 {[%clk 0:01:41.3]} 17... Ncb4 {[%clk
0:01:46.3]} 18. a3 {[%clk 0:01:25.5]} 18... Nc2 {[%clk 0:01:45.5]} 19. Bd2
{[%clk 0:01:15.5]} 19... Nxd4 {[%clk 0:01:32.4]} 20. Rxc8 {[%clk 0:01:07.9]}
20... Rxc8 {[%clk 0:01:33.3]} 21. Rd1 {[%clk 0:01:06.7]} 21... Rc2 {[%clk
0:01:27.9]} 22. Bc3 {[%clk 0:01:03.7]} 22... Ne2+ {[%clk 0:01:24]} 23. Kf1
{[%clk 0:00:59.9]} 23... f6 {[%clk 0:01:23.3]} 24. Nf3 {[%clk 0:00:45.8]} 24...
Nexc3 {[%clk 0:01:22.1]} 25. Nxc3 {[%clk 0:00:38.1]} 25... Nxc3 {[%clk
0:01:21.2]} 26. bxc3 {[%clk 0:00:38.5]} 26... Rxc3 {[%clk 0:01:21.8]} 27. Rd7
{[%clk 0:00:39]} 27... Bxa3 {[%clk 0:01:21.4]} 28. Rxb7 {[%clk 0:00:38.9]} 28...
e5 {[%clk 0:01:18.9]} 29. Ra7 {[%clk 0:00:35.6]} 29... Rc6 {[%clk 0:01:18.8]}
30. Nd2 {[%clk 0:00:34.4]} 30... Bb4 {[%clk 0:01:15.4]} 31. Nb3 {[%clk
0:00:32.3]} 31... h5 {[%clk 0:01:13.9]} 32. Ke2 {[%clk 0:00:32.1]} 32... Kh7
{[%clk 0:01:10.3]} 33. f3 {[%clk 0:00:32.5]} 33... Kg6 {[%clk 0:01:10.1]} 34. h3
{[%clk 0:00:28.6]} 34... h4 {[%clk 0:01:10.1]} 35. Rb7 {[%clk 0:00:24.2]} 35...
a5 {[%clk 0:01:09.3]} 36. Ra7 {[%clk 0:00:24.7]} 36... Rc2+ {[%clk 0:01:08.9]}
37. Ke3 {[%clk 0:00:24.1]} 37... Rxg2 {[%clk 0:01:07.4]} 38. Nxa5 {[%clk
0:00:24.5]} 38... Bc5+ {[%clk 0:01:07.8]} 0-1